{"text_format":"2","workbook":"xlsx","n_sheets":1,"sheets":["СВОД РЕЕСТРОВ РАСХОДНЫХ ОБЯЗАТ"],"not_rendered":{"charts":0,"images":0,"macros":0,"external_links":0,"defined_names":1,"comments":0,"pivot_tables":0},"unopened":[],"bounds":{"document_bytes":16777216,"sheet_cells":100000,"run_cost":"one","rows_first":2000,"rows_last":500,"rows_between":2000,"halvings":0,"cell_chars":16384,"cell_head_chars":4096},"cells_cut":0,"cells_raw":0,"read":"whole","date_system":"1900"}

{"sheet":"СВОД РЕЕСТРОВ РАСХОДНЫХ ОБЯЗАТ","index":0,"n_rows":113,"n_cols":67,"rows_kept":113,"cut":false,"hidden":false,"merged":[[0,0,0,66],[2,0,2,66],[5,4,5,34],[8,0,12,0],[8,1,12,1],[8,2,8,30],[8,31,10,32],[8,33,8,62],[8,63,8,66],[9,2,9,21],[9,22,9,27],[9,28,10,30],[9,33,9,42],[9,43,9,47],[9,48,9,52],[9,53,10,62],[9,63,10,66],[10,2,10,4],[10,5,10,8],[10,9,10,11],[10,12,10,15],[10,16,10,18],[10,19,10,21],[10,22,10,24],[10,25,10,27],[10,33,10,42],[10,43,10,47],[10,48,10,52],[11,2,12,2],[11,3,12,3],[11,4,12,4],[11,5,12,5],[11,6,12,6],[11,7,12,7],[11,8,12,8],[11,9,12,9],[11,10,12,10],[11,11,12,11],[11,12,12,12],[11,13,12,13],[11,14,12,14],[11,15,12,15],[11,16,12,16],[11,17,12,17],[11,18,12,18],[11,19,12,19],[11,20,12,20],[11,21,12,21],[11,22,12,22],[11,23,12,23],[11,24,12,24],[11,25,12,25],[11,26,12,26],[11,27,12,27],[11,28,12,28],[11,29,12,29],[11,30,12,30],[11,31,12,31],[11,32,12,32],[11,33,11,34],[11,35,11,36],[11,37,11,38],[11,39,11,40],[11,41,11,42],[11,43,12,43],[11,44,12,44],[11,45,12,45],[11,46,12,46],[11,47,12,47],[11,48,12,48],[11,49,12,49],[11,50,12,50],[11,51,12,51],[11,52,12,52],[11,53,11,57],[11,58,11,62],[11,63,11,66],[13,31,13,32]]}
["ПРЕДВАРИТЕЛЬНЫЙ РЕЕСТР РАСХОДНЫХ ОБЯЗАТЕЛЬСТВ ШАРАНГСКОГО МУНИЦИПАЛЬНОГО РАЙОНА К ПРОЕКТУ БЮДЖЕТА НА 2022 Г. И НА ПЛАНОВЫЙ ПЕРИОД 2023-2024 Г.Г."]
[]
["на  1 ОКТЯБРЯ 2021"]
[]
[]
[null,"Финансовый орган субъекта Российской Федерации",null,null,"ФИНАНСОВОЕ УПРАВЛЕНИЕ АДМИНИСТРАЦИИ ШАРАНГСКОГО МУНИЦИПАЛЬНОГО  РАЙОНА НИЖЕГОРОДСКОЙ ОБЛАСТИ"]
[null,"Единица измерения: тыс. руб. (с точностью до первого десятичного знака)"]
[]
["Наименование полномочия, расходного обязательства","Код строки","Правовое основание финансового обеспечения полномочия, расходного обязательства муниципального образования",{"$nulls":28},"Код бюджетной классификации Российской Федерации",null,"Объем средств на исполнение расходного обязательства муниципального образования"]
[null,null,"Российской Федерации",{"$nulls":19},"субъекта Российской Федерации",{"$nulls":5},"муниципальных образований",{"$nulls":4},"отчетный",{"$nulls":9},"текущий",{"$nulls":4},"очередной",{"$nulls":4},"плановый период"]
[null,null,"Федеральные законы",null,null,"Указы Президента Российской Федерации",null,null,null,"Нормативные правовые акты\nПравительства Российской Федерации",null,null,"в том числе государственные программы Российской Федерации",null,null,null,"Акты федеральных органов исполнительной власти",null,null,"Договоры, соглашения",null,null,"Законы субъекта Российской Федерации",null,null,"Нормативные правовые акты субъекта Российской Федерации ",{"$nulls":7},"2020 г.",{"$nulls":9},"2021 г.",{"$nulls":4},"2022 г."]
[null,null,"наименование, номер и дата","номер статьи (подстатьи), пункта (подпункта)","дата вступления в силу, срок действия","наименование, номер и дата","номер статьи (подстатьи), пункта (подпункта)","дата вступления в силу, срок действия","код НПА","наименование, номер и дата","номер пункта, подпункта","дата вступления в силу, срок действия","наименование, номер и дата","номер пункта, подпункта","дата вступления в силу, срок действия","код НПА","наименование, номер и дата","номер пункта, подпункта","дата вступления в силу, срок действия","наименование, номер и дата","номер пункта, подпункта","дата вступления в силу, срок действия","наименование, номер и дата","номер статьи (подстатьи), пункта (подпункта)","дата вступления в силу, срок действия","наименование, номер и дата","номер пункта, подпункта","дата вступления в силу, срок действия","наименование, номер и дата","номер статьи (подстатьи), пункта (подпункта)","дата вступления в силу, срок действия","раздел/подраздел","подраздел","Всего",null,"в т.ч. за счет целевых средств федерального бюджета",null,"в т.ч. за счет целевых средств регионального бюджета",null,"в т.ч. за счет прочих безвозмездных поступлений, включая средства фондов",null,"в т.ч. за счет средств местных бюджетов",null,"Всего","в т.ч. за счет целевых средств федерального бюджета","в т.ч. за счет целевых  средств регионального бюджета ","в т.ч. за счет прочих безвозмездных поступлений, включая средства фондов","в т.ч. за счет средств местных бюджетов","Всего","в т.ч. за счет целевых средств федерального бюджета","в т.ч. за счет целевых средств регионального бюджета ","в т.ч. за счет прочих безвозмездных поступлений, включая средства фондов","в т.ч. за счет средств местных бюджетов","1-й год планового периода 2023 г.",{"$nulls":4},"2-й год планового периода 2024 г."]
[{"$nulls":33},"утвержденные бюджетные назначения","исполнено","утвержденные бюджетные назначения","исполнено","утвержденные бюджетные назначения","исполнено","утвержденные бюджетные назначения","исполнено","утвержденные бюджетные назначения","исполнено",{"$nulls":10},"Всего","в т.ч. за счет целевых средств федерального бюджета","в т.ч. за счет целевых средств регионального бюджета ","в т.ч. за счет прочих безвозмездных поступлений, включая средства фондов","в т.ч. за счет средств местных бюджетов","Всего","в т.ч. за счет целевых средств федерального бюджета","в т.ч. за счет целевых средств регионального бюджета ","в т.ч. за счет прочих безвозмездных поступлений, включая средства фондов","в т.ч. за счет средств местных бюджетов","в т.ч. за счет целевых средств федерального бюджета","в т.ч. за счет целевых средств регионального бюджета ","в т.ч. за счет прочих безвозмездных поступлений, включая средства фондов","в т.ч. за счет средств местных бюджетов"]
[1,2,3,4,5,6,7,8,9,10,11,12,13,14,15,16,17,18,19,20,21,22,6,7,8,9,10,11,29,30,31,12,null,13,14,33,34,35,36,37,38,39,40,15,42,43,44,45,16,47,48,49,50,17,52,53,54,55,18,57,58,59,60,87,88,89,90]
["Расходные обязательства, возникшие в результате принятия нормативных правовых актов муниципального района, заключения договоров (соглашений), всего, из них:","1000","X","X","X","X","X","X","X","X","X","X","X","X","X","X","X","X","X","X","X","X","X","X","X","X","X","X","X","X","X","X","X",{"$f":"AH19+AH48+AH61+AH69+AH90+AH95","v":898156},{"$f":"AI19+AI48+AI61+AI69+AI90+AI95","v":886462.8},{"$f":"AJ19+AJ48+AJ61+AJ69+AJ90+AJ95","v":0},{"$f":"AK19+AK48+AK61+AK69+AK90+AK95","v":0},{"$f":"AL19+AL48+AL61+AL69+AL90+AL95","v":0},{"$f":"AM19+AM48+AM61+AM69+AM90+AM95","v":0},{"$f":"AN19+AN48+AN61+AN69+AN90+AN95","v":0},{"$f":"AO19+AO48+AO61+AO69+AO90+AO95","v":0},{"$f":"AP19+AP48+AP61+AP69+AP90+AP95","v":0},{"$f":"AQ19+AQ48+AQ61+AQ69+AQ90+AQ95","v":0},{"$f":"AR19+AR48+AR61+AR69+AR90+AR95","v":713001.2},0,0,0,0,680804.4,0,0,0,0,657678.1,0,0,0,0,653824,0,0,0,0,0,0,0,0]
["в том числе:"]
["Расходные обязательства, возникшие в результате принятия нормативных правовых актов муниципального района, заключения договоров (соглашений) в рамках реализации вопросов местного значения муниципального района, всего","1001","X","X","X","X","X","X","X","X","X","X","X","X","X","X","X","X","X","X","X","X","X","X","X","X","X","X","X","X","X","X","X",{"$f":"AH19","v":531784.4},{"$f":"AI19","v":525265.6},{"$f":"AJ19","v":0},{"$f":"AK19","v":0},{"$f":"AL19","v":0},{"$f":"AM19","v":0},{"$f":"AN19","v":0},{"$f":"AO19","v":0},{"$f":"AP19","v":0},{"$f":"AQ19","v":0},{"$f":"AR19","v":375030.7},0,0,0,0,317385.4,0,0,0,0,316640.9,0,0,0,0,312538.6,0,0,0,0,0,0,0,0]
["в том числе:"]
["по перечню, предусмотренному частью 4 статьи 14 и частью 1 статьи 15 Федерального закона от 6 октября 2003 г. № 131-ФЗ «Об общих принципах организации местного самоуправления в Российской Федерации», всего","1002","X","X","X","X","X","X","X","X","X","X","X","X","X","X","X","X","X","X","X","X","X","X","X","X","X","X","X","X","X","X","X",{"$f":"AH21+AH22+AH23+AH24+AH25+AH26+AH27+AH28+AH29+AH30+AH31+AH32+AH33+AH34+AH36+AH37+AH38+AH39+AH40+AH41+AH42+AH43+AH44+AH45+AH35","v":531784.4},{"$f":"AI21+AI22+AI23+AI24+AI25+AI26+AI27+AI28+AI29+AI30+AI31+AI32+AI33+AI34+AI36+AI37+AI38+AI39+AI40+AI41+AI42+AI43+AI44+AI45+AI35","v":525265.6},{"$f":"AJ21+AJ22+AJ23+AJ24+AJ25+AJ26+AJ27+AJ28+AJ29+AJ30+AJ31+AJ32+AJ33+AJ34+AJ36+AJ37+AJ38+AJ39+AJ40+AJ41+AJ42+AJ43+AJ44+AJ45+AJ35","v":0},{"$f":"AK21+AK22+AK23+AK24+AK25+AK26+AK27+AK28+AK29+AK30+AK31+AK32+AK33+AK34+AK36+AK37+AK38+AK39+AK40+AK41+AK42+AK43+AK44+AK45+AK35","v":0},{"$f":"AL21+AL22+AL23+AL24+AL25+AL26+AL27+AL28+AL29+AL30+AL31+AL32+AL33+AL34+AL36+AL37+AL38+AL39+AL40+AL41+AL42+AL43+AL44+AL45+AL35","v":0},{"$f":"AM21+AM22+AM23+AM24+AM25+AM26+AM27+AM28+AM29+AM30+AM31+AM32+AM33+AM34+AM36+AM37+AM38+AM39+AM40+AM41+AM42+AM43+AM44+AM45+AM35","v":0},{"$f":"AN21+AN22+AN23+AN24+AN25+AN26+AN27+AN28+AN29+AN30+AN31+AN32+AN33+AN34+AN36+AN37+AN38+AN39+AN40+AN41+AN42+AN43+AN44+AN45+AN35","v":0},{"$f":"AO21+AO22+AO23+AO24+AO25+AO26+AO27+AO28+AO29+AO30+AO31+AO32+AO33+AO34+AO36+AO37+AO38+AO39+AO40+AO41+AO42+AO43+AO44+AO45+AO35","v":0},{"$f":"AP21+AP22+AP23+AP24+AP25+AP26+AP27+AP28+AP29+AP30+AP31+AP32+AP33+AP34+AP36+AP37+AP38+AP39+AP40+AP41+AP42+AP43+AP44+AP45+AP35","v":0},{"$f":"AQ21+AQ22+AQ23+AQ24+AQ25+AQ26+AQ27+AQ28+AQ29+AQ30+AQ31+AQ32+AQ33+AQ34+AQ36+AQ37+AQ38+AQ39+AQ40+AQ41+AQ42+AQ43+AQ44+AQ45+AQ35","v":0},{"$f":"AR21+AR22+AR23+AR24+AR25+AR26+AR27+AR28+AR29+AR30+AR31+AR32+AR33+AR34+AR36+AR37+AR38+AR39+AR40+AR41+AR42+AR43+AR44+AR45+AR35","v":375030.7},{"$f":"AS21+AS22+AS23+AS24+AS25+AS26+AS27+AS28+AS29+AS30+AS31+AS32+AS33+AS34+AS36+AS37+AS38+AS39+AS40+AS41+AS42+AS43+AS44+AS45+AS46+AS47","v":0},{"$f":"AT21+AT22+AT23+AT24+AT25+AT26+AT27+AT28+AT29+AT30+AT31+AT32+AT33+AT34+AT36+AT37+AT38+AT39+AT40+AT41+AT42+AT43+AT44+AT45+AT46+AT47","v":0},{"$f":"AU21+AU22+AU23+AU24+AU25+AU26+AU27+AU28+AU29+AU30+AU31+AU32+AU33+AU34+AU36+AU37+AU38+AU39+AU40+AU41+AU42+AU43+AU44+AU45+AU46+AU47","v":0},{"$f":"AV21+AV22+AV23+AV24+AV25+AV26+AV27+AV28+AV29+AV30+AV31+AV32+AV33+AV34+AV36+AV37+AV38+AV39+AV40+AV41+AV42+AV43+AV44+AV45+AV46+AV47","v":0},317385.4,0,0,0,0,316640.9,0,0,0,0,312538.6,0,0,0,0,0,0,0,0]
["в том числе:"]
["составление и рассмотрение проекта бюджета муниципального района, утверждение и исполнение бюджета муниципального района, осуществление контроля за его исполнением, составление и утверждение отчета об исполнении бюджета муниципального района","1003","Федеральный Закон от 06.10.2003 №131-ФЗ \"Об общих принципах организации местного самоуправления в Российской Федерации\"","п.1, ст.15","06.10.2003 - не установлена",{"$nulls":17},"Закон Нижегородской области от 03.08.2007 №99-3 \"О муниципальной службе в Нижегородской области\"","в целом","01.01.2012 - 01.01.3000",{"$nulls":6},"01/06           01/13","00",11291,11286.6,0,0,0,0,0,0,0,0,12202.4,0,0,0,0,11131.3,0,0,0,0,11031.3,0,0,0,0,11031.3,0,0,0,0,0,0,0,0]
["владение, пользование и распоряжение имуществом, находящимся в муниципальной собственности муниципального района","1005","1) Федеральный Закон от 06.10.2003 №131-ФЗ \"Об общих принципах организации местного самоуправления в Российской Федерации\"\n2) Федеральный Закон от 06.10.2003 №131-ФЗ \"Об общих принципах организации местного самоуправления в Российской Федерации\"","1) ст.17\n2) ст.51","1) 06.10.2003 - не установлена\n2) 06.10.2003 - не установлена",{"$nulls":26},"01/13       04/06","00",10,10,0,0,0,0,0,0,0,0,125.2,0,0,0,0,50,0,0,0,0,0,0,0,0,0,0,0,0,0,0,0,0,0,0]
["дорожная деятельность в отношении автомобильных дорог местного значения вне границ населенных пунктов в границах муниципального района, осуществление муниципального контроля за сохранностью автомобильных дорог местного значения вне границ населенных пунктов в границах муниципального района, организация дорожного движения и обеспечение безопасности дорожного движения на них, а также осуществление иных полномочий в области использования автомобильных дорог и осуществления дорожной деятельности в соответствии с законодательством Российской Федерации","1007","1) Федеральный Закон от 06.10.2003 №131-ФЗ \"Об общих принципах организации местного самоуправления в Российской Федерации\"\n2) Федеральный Закон от 06.10.2003 №131-ФЗ \"Об общих принципах организации местного самоуправления в Российской Федерации\"\n3) Федеральный Закон от 06.10.2003 №131-ФЗ \"Об общих принципах организации местного самоуправления в Российской Федерации\"","1) ст.17\n2) ст.51\n3) п.5, ст.15","1) 06.10.2003 - не установлена\n2) 06.10.2003 - не установлена\n3) 06.10.2003 - не установлена",{"$nulls":26},"04/09","00",0,0,0,0,0,0,0,0,0,0,545.7,0,0,0,0,0,0,0,0,0,0,0,0,0,0,0,0,0,0,0,0,0,0,0]
["создание условий для предоставления транспортных услуг населению и организация транспортного обслуживания населения между поселениями в границах муниципального района (в части автомобильного транспорта)","1010","1) Федеральный Закон от 06.10.2003 №131-ФЗ \"Об общих принципах организации местного самоуправления в Российской Федерации\"\n2) Федеральный Закон от 06.10.2003 №131-ФЗ \"Об общих принципах организации местного самоуправления в Российской Федерации\"\n3) Федеральный Закон от 06.10.2003 №131-ФЗ \"Об общих принципах организации местного самоуправления в Российской Федерации\"\n4) Федеральный Закон от 06.10.2003 №131-ФЗ \"Об общих принципах организации местного самоуправления в Российской Федерации\"","1) ст.17\n2) ст.51\n3) п.5, ст.15\n4) п.6, ст.15","1) 06.10.2003 - не установлена\n2) 06.10.2003 - не установлена\n3) 06.10.2003 - не установлена\n4) 06.10.2003 - не установлена",{"$nulls":26},"04/08","00",5482.7,5413,0,0,0,0,0,0,0,0,6757.7,0,0,0,0,4000,0,0,0,0,1000,0,0,0,0,3000,0,0,0,0,0,0,0,0]
["участие в профилактике терроризма и экстремизма, а также в минимизации и (или) ликвидации последствий проявлений терроризма и экстремизма на территории муниципального района","1013",{"$nulls":20},"1) Закон Нижегородской области от 04.01.1996 №17-З \"О защите населения и территорий Нижегородской области от чрезвычайных ситуаций природного и техногенного характера\"\n2) Закон Нижегородской области от 03.08.2007 №199-З \"О муниципальной службе в Нижегородской области\"","1) ст.24\n2) в целом","1) 24.01.1996 - не установлена\n2) 03.08.2007 - 01.01.3000",{"$nulls":6},"07/01            07/02           07/03","00",297.8,297.8,0,0,0,0,0,0,0,0,452.2,0,0,0,0,0,0,0,0,0,0,0,0,0,0,0,0,0,0,0,0,0,0,0]
["участие в предупреждении и ликвидации последствий чрезвычайных ситуаций на территории муниципального района","1015",{"$nulls":20},"1) Закон Нижегородской области от 04.01.1996 №17-З \"О защите населения и территорий Нижегородской области от чрезвычайных ситуаций природного и техногенного характера\"\n2) Закон Нижегородской области от 03.08.2007 №199-З \"О муниципальной службе в Нижегородской области\"","1) ст.24\n2) в целом","1) 24.01.1996 - не установлена\n2) 03.08.2007 - 01.01.3000",{"$nulls":6},"03/10          04/10","00",3578.2,3455,0,0,0,0,0,0,0,0,3899.4,0,0,0,0,4318.3,0,0,0,0,4318.3,0,0,0,0,4318.3,0,0,0,0,0,0,0,0]
["организация предоставления общедоступного и бесплатного дошкольного образования по основным общеобразовательным программам в муниципальных образовательных организациях (за исключением полномочий по финансовому обеспечению реализации основных общеобразовательных программ в соответствии с федеральными государственными образовательными стандартами), создание условий для осуществления присмотра и ухода за детьми, содержания детей в муниципальных образовательных организациях","1019","1) Федеральный Закон от 29.12.2012 №273-ФЗ \"Об образовании в Российской Федерации\"\n2) Федеральный Закон от 06.10.2003 №131-ФЗ \"Об общих принципах организации местного самоуправления в Российской Федерации\"","1) в целом\n2) в целом","1) 01.09.2013 - не установлена\n2) 06.10.2003 - не установлена",{"$nulls":26},"07/01","00",253671.4,253387.5,0,0,0,0,0,0,0,0,76068.9,0,0,0,0,51194,0,0,0,0,50203,0,0,0,0,50203,0,0,0,0,0,0,0,0]
[" организация предоставления общедоступного и бесплатного начального общего, основного общего, среднего общего образования по основным общеобразовательным программам в муниципальных образовательных организациях (за исключением полномочий по финансовому обеспечению реализации основных общеобразовательных программ в соответствии с федеральными государственными образовательными стандартами) (в части начального общего, основного общего, среднего общего образования в муниципальных общеобразовательных организациях в городской местности)","1020","1) Федеральный закон от 06.10.2003 № 131-ФЗ \"Об общих принципах организации местного самоуправления в  Российской Федерации\"           2) Федеральный закон от 29.12.2012 № 273-ФЗ \"Об образовании в Российской Федерации\"","1) в целом\n2) в целом","1) 06.10.2003, не установлен  2) 01.09.2013, не установлен ",{"$nulls":26},"0702",null,13151.7,12820,{"$nulls":8},23622.9]
["организация предоставления общедоступного и бесплатного начального общего, основного общего, среднего общего образования по основным общеобразовательным программам в муниципальных образовательных организациях (за исключением полномочий по финансовому обеспечению реализации основных общеобразовательных программ в соответствии с федеральными государственными образовательными стандартами) (в части начального общего, основного общего, среднего общего образования в муниципальных общеобразовательных организациях в сельской местности)","1021","1) Федеральный Закон от 29.12.2012 №273-ФЗ \"Об образовании в Российской Федерации\"\n2) Федеральный Закон от 06.10.2003 №131-ФЗ \"Об общих принципах организации местного самоуправления в Российской Федерации\"","1) в целом\n2) в целом","1) 01.09.2013 - не установлена\n2) 06.10.2003 - не установлена",{"$nulls":26},"07/02","00",26938.7,26811.4,0,0,0,0,0,0,0,0,33544.9,0,0,0,0,41186,0,0,0,0,41821.8,0,0,0,0,41953.8,0,0,0,0,0,0,0,0]
["организация предоставления дополнительного образования детей в муниципальных образовательных организациях (за исключением дополнительного образования детей, финансовое обеспечение которого осуществляется органами государственной власти субъекта Российской Федерации)","1022","1) Федеральный Закон от 29.12.2012 №273-ФЗ \"Об образовании в Российской Федерации\"\n2) Федеральный Закон от 06.10.2003 №131-ФЗ \"Об общих принципах организации местного самоуправления в Российской Федерации\"\n3) Федеральный Закон от 06.10.2003 №131-ФЗ \"Об общих принципах организации местного самоуправления в Российской Федерации\"","1) в целом\n2) в целом\n3) п.11, ст.15","1) 01.09.2013 - не установлена\n2) 06.10.2003 - не установлена\n3) 06.10.2003 - не установлена",{"$nulls":17},"Закон Нижегородской области от 24.11.2004 №131-З \"О мерах социальной поддержки жертв политических репрессий\"","в целом","01.01.2005 - не установлена","Постановление Правительства Нижегородской области от 26.02.2008 №51 \"Постановление Правительства Нижегородской области от 26.02.2008 № 51 \"О мерах государственной поддержки муниципальных образовательных учреждений дополнительного образования детей Нижегородской области, внедряющих инновационные программы, находящиеся в ведении органов управления образованием, органов по делам молодежи, и выплате денежного поощрения лучшим педагогам дополнительного образования и тренерам-преподавателям, реализующим дополнительные профессиональные программы в государственных, муниципальных образовательных организациях нижегородской области, находящихся в ведении органов, осуществляющих управление в сфере образования, органов по делам молодежи\"\"","в целом","06.03.2008 - 01.01.3000",null,null,null,"07/03","00",27615.2,27586.2,0,0,0,0,0,0,0,0,28195.1,0,0,0,0,29310.9,0,0,0,0,29309.1,0,0,0,0,29309.1,0,0,0,0,0,0,0,0]
["осуществление в пределах своих полномочий мероприятий по обеспечению организации отдыха детей в каникулярное время, включая мероприятия по обеспечению безопасности их жизни и здоровья","1023",{"$nulls":7},"Постановление Правительства Российской Федерации от 29.05.2002 №363 \"О подпрограмме \"Физическое воспитание и оздоровление детей, подростков и молодежи в Российской Федерации (2002 - 2005 годы)\" Федеральной целевой программы \"Молодежь России (2001 - 2005 годы)\"","в целом","29.05.2002 - 31.12.2005",{"$nulls":13},"Постановление Правительства Нижегородской области от 01.07.2019 №412 \"Об организации отдыха, оздоровления и занятости детей и молодежи Нижегородской области\"","в целом","01.07.2019 - не установлена",null,null,null,"07/07","00",1207.1,0,0,0,0,0,0,0,0,0,1748,0,0,0,0,2123.3,0,0,0,0,2123.3,0,0,0,0,2123.3,0,0,0,0,0,0,0,0]
["организация предоставления общедоступного и бесплатного дошкольного, начального общего, основного общего, среднего общего образования по основным общеобразовательным программам в муниципальных образовательных организациях (за исключением полномочий по финансовому обеспечению реализации основных общеобразовательных программ в соответствии с федеральными государственными образовательными стандартами), организация предоставления дополнительного образования детей в муниципальных образовательных организациях (за исключением дополнительного образования детей, финансовое обеспечение которого осуществляется органами государственной власти субъекта Российской Федерации), создание условий для осуществления присмотра и ухода за детьми, содержания детей в муниципальных образовательных организациях (в части обеспечения деятельности прочих учреждений образования (централизованные бухгалтерии, межшкольные учебные комбинаты, хозяйственные эксплуатационные конторы и другие)","1024","Федеральный Закон от 06.10.2003 №131-ФЗ \"Об общих принципах организации местного самоуправления в Российской Федерации\"","в целом","06.10.2003 - не установлена",{"$nulls":26},"07/09","00",27139.5,26406.6,0,0,0,0,0,0,0,0,28768.1,0,0,0,0,32010.8,0,0,0,0,30875.9,0,0,0,0,30875.9,0,0,0,0,0,0,0,0]
["участие в организации деятельности по накоплению (в том числе раздельному накоплению), сбору, транспортированию, обработке, утилизации, обезвреживанию, захоронению твердых коммунальных отходов на территориях соответствующих муниципальных районов","1026",{"$nulls":29},"05/02","00",515.9,515.9,0,0,0,0,0,0,0,0,0,0,0,0,0,834,0,0,0,0,1770,0,0,0,0,8358,0,0,0,0,0,0,0,0]
["утверждение схем территориального планирования муниципального района, утверждение подготовленной на основе схемы территориального планирования муниципального района документации по планировке территории, ведение информационной системы обеспечения градостроительной деятельности, осуществляемой на территории муниципального района, резервирование и изъятие земельных участков в границах муниципального района для муниципальных нужд, направление уведомления о соответствии указанных в уведомлении о планируемом строительстве параметров объекта индивидуального жилищного строительства или садового дома установленным параметрам и допустимости размещения объекта индивидуального жилищного строительства или садового дома на земельном участке, уведомления о несоответствии указанных в уведомлении о планируемом строительстве параметров объекта индивидуального жилищного строительства или садового дома установленным параметрам и (или) недопустимости размещения объекта индивидуального жилищного строительства или садового дома на земельном участке, уведомления о соответствии или несоответствии построенных или реконструированных объекта индивидуального жилищного строительства или садового дома требованиям законодательства о градостроительной деятельности при строительстве или реконструкции объектов индивидуального жилищного строительства или садовых домов на земельных участках, расположенных на соответствующих межселенных территориях, принятие в соответствии с гражданским законодательством Российской Федерации решения о сносе самовольной постройки, расположенной на межселенной территории, решения о сносе самовольной постройки, расположенной на межселенной территории, или ее приведении в соответствие с установленными требованиями, решения об изъятии земельного участка, не используемого по целевому назначению или используемого с нарушением законодательства Российской Федерации и расположенного на межселенной территории, осуществление сноса самовольной постройки, расположенной на межселенной территории, или ее приведения в соответствие с установленными требованиями в случаях, предусмотренных Градостроительным кодексом Российской Федерации, выдача градостроительного плана земельного участка, расположенного на межселенной территории","1027","Федеральный Закон от 06.10.2003 №131-ФЗ \"Об общих принципах организации местного самоуправления в Российской Федерации\"","в целом","06.10.2003 - не установлена",{"$nulls":26},"04/12","00",611.4,611.4,0,0,0,0,0,0,0,0,855,0,0,0,0,855,0,0,0,0,130,0,0,0,0,130,0,0,0,0,0,0,0,0]
["организация библиотечного обслуживания населения межпоселенческими библиотеками, комплектование и обеспечение сохранности их библиотечных фондов","1033","Федеральный Закон от 06.10.2003 №131-ФЗ \"Об общих принципах организации местного самоуправления в Российской Федерации\"","п.19, ст.15","06.10.2003 - не установлена",{"$nulls":20},"Постановление Правительства Нижегородской области от 13.08.2002 №197 \"Об утверждении Программы формирования и сохранения библиотечных фондов как части культурного наследия Нижегородской области на 2003 - 2005 гг.\"","в целом","13.08.2002 - 31.12.2005",null,null,null,"08/01","00",345.1,345.1,0,0,0,0,0,0,0,0,15123.9,0,0,0,0,18337.9,0,0,0,0,18336.1,0,0,0,0,15530,0,0,0,0,0,0,0,0]
["создание условий для обеспечения поселений, входящих в состав муниципального района, услугами по организации досуга и услугами организаций культуры","1034","Федеральный Закон от 06.10.2003 №131-ФЗ \"Об общих принципах организации местного самоуправления в Российской Федерации\"","пп.19.1, п.19, ст.15","06.10.2003 - не установлена",{"$nulls":20},"Постановление Правительства Нижегородской области от 31.12.1996 №333 \"Об утверждении положения об основах хозяйственной деятельности и финансирования организаций культуры и искусства Нижегородской области\"","в целом","31.12.1996 - 01.01.3000",null,null,null,"08/01    08/04","00",29310.8,29289,0,0,0,0,0,0,0,0,48422.6,0,0,0,0,56048,0,0,0,0,55426,0,0,0,0,55426,0,0,0,0,0,0,0,0]
["сохранение, использование и популяризация объектов культурного наследия (памятников истории и культуры), находящихся в собственности муниципального района, охрана объектов культурного наследия (памятников истории и культуры) местного (муниципального) значения, расположенных на территории муниципального района","1036","Федеральный Закон от 06.10.2003 №131-ФЗ \"Об общих принципах организации местного самоуправления в Российской Федерации\"","пп.19.3, п.19, ст.15","06.10.2003 - не установлена",{"$nulls":20},"Постановление Правительства Нижегородской области от 15.04.2003 №105 \"Об утверждении программы \"Развитие музейного дела в Нижегородской области: 2003 - 2005 гг.\"","в целом","15.04.2003 - 31.12.2005",null,null,null,"08/01","00",0,0,0,0,0,0,0,0,0,0,2137.1,0,0,0,0,2154.8,0,0,0,0,2140,0,0,0,0,2043.5,0,0,0,0,0,0,0,0]
["создание условий для расширения рынка сельскохозяйственной продукции, сырья и продовольствия","1041","Федеральный Закон от 06.10.2003 №131-ФЗ \"Об общих принципах организации местного самоуправления в Российской Федерации\"","в целом","06.10.2003 - не установлена",{"$nulls":26},"04/05","00",628.6,628.6,0,0,0,0,0,0,0,0,474,0,0,0,0,829.8,0,0,0,0,529.8,0,0,0,0,529.8,0,0,0,0,0,0,0,0]
["содействие развитию малого и среднего предпринимательства","1044","Федеральный Закон от 06.10.2003 №131-ФЗ \"Об общих принципах организации местного самоуправления в Российской Федерации\"","в целом","06.10.2003 - не установлена",{"$nulls":26},"04/12","00",300,300,0,0,0,0,0,0,0,0,300,0,0,0,0,300,0,0,0,0,300,0,0,0,0,300,0,0,0,0,0,0,0,0]
["обеспечение условий для развития на территории муниципального района физической культуры, школьного спорта и массового спорта","1046","Федеральный Закон от 06.10.2003 №131-ФЗ \"Об общих принципах организации местного самоуправления в Российской Федерации\"","в целом","06.10.2003 - не установлена",{"$nulls":26},"11/02","00",46908.4,43334.7,0,0,0,0,0,0,0,0,48429.1,0,0,0,0,56002.3,0,0,0,0,50175.1,0,0,0,0,54264.1,0,0,0,0,0,0,0,0]
["организация проведения официальных физкультурно-оздоровительных и спортивных мероприятий муниципального района","1047","Федеральный Закон от 06.10.2003 №131-ФЗ \"Об общих принципах организации местного самоуправления в Российской Федерации\"","в целом","06.10.2003 - не установлена",{"$nulls":26},"11/02","00",74.1,74.1,0,0,0,0,0,0,0,0,426.3,0,0,0,0,713,0,0,0,0,713,0,0,0,0,713,0,0,0,0,0,0,0,0]
["осуществление мер по противодействию коррупции в границах муниципального района","1052","Федеральный Закон от 06.10.2003 №131-ФЗ \"Об общих принципах организации местного самоуправления в Российской Федерации\"","в целом","06.10.2003 - не установлена",{"$nulls":26},"01/04","00",10,9,0,0,0,0,0,0,0,0,0,0,0,0,0,0,0,0,0,0,0,0,0,0,0,0,0,0,0,0,0,0,0,0]
["организация в границах сельского поселения электро-, тепло-, газо- и водоснабжения населения, водоотведения, снабжения населения топливом в пределах полномочий, установленных законодательством Российской Федерации, на территории сельского поселения","1056","Федеральный Закон от 06.10.2003 №131-ФЗ \"Об общих принципах организации местного самоуправления в Российской Федерации\"","в целом","06.10.2003 - не установлена",{"$nulls":17},"Закон Нижегородской области от 17.12.1996 №56-З \"Об энергосбережении\"","в целом","17.12.1996 - 01.01.3000","Постановление Правительства Нижегородской области от 13.04.2005 №93 \"Постановление Правительства Нижегородской области от 13.04.2005 № 93 \"Об утверждении концепции социально-экономического развития северных районов Нижегородской области\"\"","в целом","13.04.2005 - 01.01.3000",null,null,null,"05/02      05/05","00",39337.4,39337.4,0,0,0,0,0,0,0,0,8768.7,0,0,0,0,934.2,0,0,0,0,934.2,0,0,0,0,934.2,0,0,0,0,0,0,0,0]
["обеспечение проживающих в сельском поселении и нуждающихся в жилых помещениях малоимущих граждан жилыми помещениями, организация строительства и содержания муниципального жилищного фонда, создание условий для жилищного строительства, осуществление муниципального жилищного контроля, а также иных полномочий органов местного самоуправления в соответствии с жилищным законодательством на территории сельского поселения","1059","Федеральный Закон от 06.10.2003 №131-ФЗ \"Об общих принципах организации местного самоуправления в Российской Федерации\"","в целом","06.10.2003 - не установлена",{"$nulls":17},"Закон Нижегородской области от 07.09.2007 №123-З \"\"О жилищной политике в Нижегородской области\"\"","в целом","30.09.2007 - не установлена",{"$nulls":6},"05/01        10/03              10/04","00",9011.1,8998,0,0,0,0,0,0,0,0,34163.5,0,0,0,0,5052,0,0,0,0,15504.2,0,0,0,0,1495.4,0,0,0,0,0,0,0,0]
[" в случаях заключения соглашения с органами местного самоуправления отдельных поселений о передаче муниципальному району осуществления части полномочий по решению вопросов местного значения поселения, всего","1100","X","X","X","X","X","X","X","X","X","X","X","X","X","X","X","X","X","X","X","X","X","X","X","X","X","X","X","X","X","X",null,{"$f":"AH46+AH47","v":34348.3},{"$f":"AI46+AI47","v":34348.3},{"$f":"AJ46+AJ47","v":0},{"$f":"AK46+AK47","v":0},{"$f":"AL46+AL47","v":0},{"$f":"AM46+AM47","v":0},{"$f":"AN46+AN47","v":0},{"$f":"AO46+AO47","v":0},{"$f":"AP46+AP47","v":0},{"$f":"AQ46+AQ47","v":0},{"$f":"AR46+AR47","v":0}]
["организация библиотечного обслуживания населения, комплектование и обеспечение сохранности библиотечных фондов библиотек поселения","1118","1) Федеральный закон от 06.10.2003 № 131-ФЗ \"Об общих принципах организации местного самоуправления в Российской Федерации\"",{"$nulls":28},"08/01",null,15381.4,15381.4]
[" создание условий для организации досуга и обеспечения жителей поселения услугами организаций культуры","1119","1) Федеральный закон от 06.10.2003 № 131-ФЗ \"Об общих принципах организации местного самоуправления в Российской Федерации\"",{"$nulls":28},"08/01",null,18966.9,18966.9]
["Расходные обязательства, возникшие в результате принятия нормативных правовых актов муниципального района, заключения договоров (соглашений) в рамках реализации полномочий органов местного самоуправления муниципального района по решению вопросов местного значения муниципального района по перечню, предусмотренному частью 1 статьи 17 Федерального закона от 6 октября 2003 г. № 131-ФЗ «Об общих принципах организации местного самоуправления в Российской Федерации», всего","1200","X","X","X","X","X","X","X","X","X","X","X","X","X","X","X","X","X","X","X","X","X","X","X","X","X","X","X","X","X","X","X",{"$f":"AH50+AH51+AH52+AH53+AH54+AH55+AH56++AH57+AH58+AH59+AH60","v":62020.5},{"$f":"AI50+AI51+AI52+AI53+AI54+AI55+AI56++AI57+AI58+AI59+AI60","v":58189.3},{"$f":"AJ50+AJ51+AJ52+AJ53+AJ54+AJ55+AJ56++AJ57+AJ58+AJ59+AJ60","v":0},{"$f":"AK50+AK51+AK52+AK53+AK54+AK55+AK56++AK57+AK58+AK59+AK60","v":0},{"$f":"AL50+AL51+AL52+AL53+AL54+AL55+AL56++AL57+AL58+AL59+AL60","v":0},{"$f":"AM50+AM51+AM52+AM53+AM54+AM55+AM56++AM57+AM58+AM59+AM60","v":0},{"$f":"AN50+AN51+AN52+AN53+AN54+AN55+AN56++AN57+AN58+AN59+AN60","v":0},{"$f":"AO50+AO51+AO52+AO53+AO54+AO55+AO56++AO57+AO58+AO59+AO60","v":0},{"$f":"AP50+AP51+AP52+AP53+AP54+AP55+AP56++AP57+AP58+AP59+AP60","v":0},{"$f":"AQ50+AQ51+AQ52+AQ53+AQ54+AQ55+AQ56++AQ57+AQ58+AQ59+AQ60","v":0},{"$f":"AR50+AR51+AR52+AR53+AR54+AR55+AR56++AR57+AR58+AR59+AR60","v":44666},0,0,0,0,50350.9,0,0,0,0,36822.1,0,0,0,0,38322.1,0,0,0,0,0,0,0,0]
["в том числе:"]
["материально-техническое и финансовое обеспечение деятельности органов местного самоуправления без учета вопросов оплаты труда работников органов местного самоуправления","1201","1) Федеральный Закон от 02.03.2007 №25-ФЗ \"О муниципальной службе в Российской Федерации\"\n2) Федеральный Закон от 06.10.2003 №131-ФЗ \"Об общих принципах организации местного самоуправления в Российской Федерации\"","1) в целом\n2) в целом","1) 02.03.2007 - 01.01.3000\n2) 06.10.2003 - не установлена",{"$nulls":17},"Закон Нижегородской области от 03.08.2007 №99-3 \"О муниципальной службе в Нижегородской области\"","в целом","01.01.2012 - 01.01.3000",{"$nulls":6},"01/02              01/03       01/04      01/13            04/10","00",16293.5,13559.2,0,0,0,0,0,0,0,0,9119.8,0,0,0,0,6950.4,0,0,0,0,4871.5,0,0,0,0,4871.5,0,0,0,0,0,0,0,0]
["материально-техническое и финансовое обеспечение деятельности органов местного самоуправления в части вопросов оплаты труда работников органов местного самоуправления","1202","Федеральный Закон от 06.10.2003 №131-ФЗ \"Об общих принципах организации местного самоуправления в Российской Федерации\"","в целом","06.10.2003 - не установлена",{"$nulls":26},"01/02         01/03       01/04      01/13            ","00",18798.7,18705.8,0,0,0,0,0,0,0,0,22847.4,0,0,0,0,22046,0,0,0,0,19422.9,0,0,0,0,19422.9,0,0,0,0,0,0,0,0]
["создание муниципальных предприятий","1205","Закон Российской Федерации от 27.12.1991 №2124-1 \"О средствах массовой информации\"","в целом","18.02.1992 - не установлена",{"$nulls":20},"Постановление Правительства Нижегородской области от 19.05.2006 №176 \"О порядке оказания государственной финансовой поддержки средствам массовой информации Нижегородской области\"","в целом","19.05.2006 - не установлена",null,null,null,"12/01     01/13","00",0,0,0,0,0,0,0,0,0,0,2715,0,0,0,0,1389.2,0,0,0,0,1389.2,0,0,0,0,1389.2,0,0,0,0,0,0,0,0]
["создание муниципальных учреждений, осуществление финансового обеспечения деятельности муниципальных казенных учреждений и финансового обеспечения выполнения муниципального задания бюджетными и автономными муниципальными учреждениями, а также осуществление закупок товаров, работ, услуг для обеспечения муниципальных нужд (в части общеотраслевых учреждений)","1208",{"$nulls":29},"01/13             12/01","00",3668.5,3668.5,0,0,0,0,0,0,0,0,0,0,0,0,0,3490.1,0,0,0,0,3490.1,0,0,0,0,3490.1,0,0,0,0,0,0,0,0]
["организационное и материально-техническое обеспечение подготовки и проведения муниципальных выборов, местного референдума, голосования по отзыву депутата, члена выборного органа местного самоуправления, выборного должностного лица местного самоуправления, голосования по вопросам изменения границ муниципального образования, преобразования муниципального образования","1213",{"$nulls":29},"01/07","00",1406.4,1406.4,0,0,0,0,0,0,0,0,0,0,0,0,0,1826.8,0,0,0,0,0,0,0,0,0,0,0,0,0,0,0,0,0,0]
["учреждение печатного средства массовой информации для опубликования муниципальных правовых актов, обсуждения проектов муниципальных правовых актов по вопросам местного значения, доведения до сведения жителей муниципального образования официальной информации о социально-экономическом и культурном развитии муниципального образования, о развитии его общественной инфраструктуры и иной официальной информации","1217","Федеральный Закон от 06.10.2003 №131-ФЗ \"Об общих принципах организации местного самоуправления в Российской Федерации\"","в целом","06.10.2003 - не установлена",{"$nulls":26},"12/02","00",2405.1,2405.1,0,0,0,0,0,0,0,0,3146.1,0,0,0,0,2595.5,0,0,0,0,2595.5,0,0,0,0,2595.5,0,0,0,0,0,0,0,0]
["предоставление доплаты за выслугу лет к трудовой пенсии муниципальным служащим за счет средств местного бюджета","1223",{"$nulls":20},"Закон Нижегородской области от 03.08.2007 №99-3 \"О муниципальной службе в Нижегородской области\"","в целом","01.01.2012 - 01.01.3000",{"$nulls":6},"10/01","00",3462.3,3462.3,0,0,0,0,0,0,0,0,4387,0,0,0,0,4900,0,0,0,0,3400,0,0,0,0,4900,0,0,0,0,0,0,0,0]
["Полномочия по обеспечению обучающихся по образовательным программа начального общего образования в государственных и муниципальных образовательных организациях бесплатным горячим питанием и по реализации мероприятий по обеспечению условий для организации бесплатного горячего питания обучающихся по образовательным программам начального общего образования в государственных и муниципальных образовательных организациях – часть 2.1 статьи 37 Федерального закона от 29 декабря 2012 г. № 273-ФЗ «Об образовании в Российской Федерации», пункт 3 статьи 3 Федерального закона от 1 марта 2020 г. № 47-ФЗ «О внесении изменений в Федеральный закон «О качестве и безопасности пищевых продуктов» и статью 37 Федерального закона «Об образовании в Российской Федерации»","1224","Федеральный Закон от 06.10.2003 №131-ФЗ \"Об общих принципах организации местного самоуправления в Российской Федерации\"","в целом","06.10.2003 - не установлена",{"$nulls":26},"07/02","00",2573.5,2181.3,0,0,0,0,0,0,0,0,0,0,0,0,0,0,0,0,0,0,0,0,0,0,0,0,0,0,0,0,0,0,0,0]
["Полномочия в рамках реализации мероприятий, связанных с влиянием ухудшения экономической ситуации на развитие отраслей экономики, с профилактикой и устранением последствий распространения коронавирусной инфекции","1225",{"$nulls":29},"01/04   01/06              01/13          04/08              04/10            04/12            05/01           07/01            07/02        07/03            08/01           11/02","00",11135.3,11133,0,0,0,0,0,0,0,0,13.4,0,0,0,0,0,0,0,0,0,0,0,0,0,0,0,0,0,0,0,0,0,0,0]
["Общемуниципальные мероприятия","1227",{"$nulls":29},"01/13        10/03        10/06","00",1667.7,1667.7,0,0,0,0,0,0,0,0,437.3,0,0,0,0,5152.9,0,0,0,0,1152.9,0,0,0,0,1152.9,0,0,0,0,0,0,0,0]
["Расходы за счет резервного фонда","1228",{"$nulls":29},"01/11","00",609.5,0,0,0,0,0,0,0,0,0,2000,0,0,0,0,2000,0,0,0,0,500,0,0,0,0,500,0,0,0,0,0,0,0,0]
["Расходные обязательства, возникшие в результате принятия нормативных правовых актов муниципального района, заключения договоров (соглашений) в рамках реализации органами местного самоуправления муниципального района права на решение вопросов, не отнесенных к вопросам местного значения муниципального района, всего","1300","X","X","X","X","X","X","X","X","X","X","X","X","X","X","X","X","X","X","X","X","X","X","X","X","X","X","X","X","X","X","X",{"$f":"AH63","v":37.8},{"$f":"AI63","v":37.8},{"$f":"AJ63","v":0},{"$f":"AK63","v":0},{"$f":"AL63","v":0},{"$f":"AM63","v":0},{"$f":"AN63","v":0},{"$f":"AO63","v":0},{"$f":"AP63","v":0},{"$f":"AQ63","v":0},{"$f":"AR63","v":37.8},0,0,0,0,37.8,0,0,0,0,37.8,0,0,0,0,37.8,0,0,0,0,0,0,0,0]
["в том числе:"]
["по перечню, предусмотренному частью 1 статьи 15.1 Федерального закона от 6 октября 2003 г. № 131-ФЗ «Об общих принципах организации местного самоуправления в Российской Федерации», всего","1301","X","X","X","X","X","X","X","X","X","X","X","X","X","X","X","X","X","X","X","X","X","X","X","X","X","X","X","X","X","X","X",{"$f":"AH65+AH66","v":37.8},{"$f":"AI65+AI66","v":37.8},{"$f":"AJ65+AJ66","v":0},{"$f":"AK65+AK66","v":0},{"$f":"AL65+AL66","v":0},{"$f":"AM65+AM66","v":0},{"$f":"AN65+AN66","v":0},{"$f":"AO65+AO66","v":0},{"$f":"AP65+AP66","v":0},{"$f":"AQ65+AQ66","v":0},{"$f":"AR65+AR66","v":37.8},0,0,0,0,37.8,0,0,0,0,37.8,0,0,0,0,37.8,0,0,0,0,0,0,0,0]
["в том числе:"]
["оказание поддержки общественным объединениям инвалидов, а также созданным общероссийскими общественными объединениями инвалидов организациям в соответствии с Федеральным законом от 24 ноября 1995 г. № 181-ФЗ «О социальной защите инвалидов в Российской Федерации»","1309",{"$nulls":29},"10/06","00",37.8,37.8,0,0,0,0,0,0,0,0,37.8,0,0,0,0,37.8,0,0,0,0,37.8,0,0,0,0,37.8,0,0,0,0,0,0,0,0]
["по реализации права устанавливать за счет местного бюджета дополнительные меры социальной поддержки и социальной помощи для отдельных категорий граждан вне зависимости от наличия в федеральных законах положений, устанавливающих указанное право, всего","1500","X","X","X","X","X","X","X","X","X","X","X","X","X","X","X","X","X","X","X","X","X","X","X","X","X","X","X","X","X","X","X",0,0,0,0,0,0,0,0,0,0,0,0,0,0,0,0,0,0,0,0,0,0,0,0,0,0,0,0,0,0,0,0,0,0]
["в том числе:"]
["социальная поддержка отдельных категорий граждан","1503",{"$nulls":29},"00/00","00",0,0,0,0,0,0,0,0,0,0,0,0,0,0,0,0,0,0,0,0,0,0,0,0,0,0,0,0,0,0,0,0,0,0]
["Расходные обязательства, возникшие в результате принятия нормативных правовых актов муниципального района, заключения договоров (соглашений) в рамках реализации органами местного самоуправления муниципального района отдельных государственных полномочий, переданных органами государственной власти Российской Федерации и (или) органами государственной власти субъекта Российской Федерации, всего","1700","X","X","X","X","X","X","X","X","X","X","X","X","X","X","X","X","X","X","X","X","X","X","X","X","X","X","X","X","X","X","X",{"$f":"AH75","v":52350.7},{"$f":"AI75","v":51380.8},{"$f":"AJ75","v":0},{"$f":"AK75","v":0},{"$f":"AL75","v":0},{"$f":"AM75","v":0},{"$f":"AN75","v":0},{"$f":"AO75","v":0},{"$f":"AP75","v":0},{"$f":"AQ75","v":0},{"$f":"AR75","v":65375},{"$f":"AS75","v":0},{"$f":"AT75","v":0},{"$f":"AU75","v":0},{"$f":"AV75","v":0},56736.3,0,0,0,0,57008.1,0,0,0,0,56492.2,0,0,0,0,0,0,0,0]
["в том числе:"]
["за счет субвенций, предоставленных из федерального бюджета, всего","1701","X","X","X","X","X","X","X","X","X","X","X","X","X","X","X","X","X","X","X","X","X","X","X","X","X","X","X","X","X","X","X",0,0,0,0,0,0,0,0,0,0,0,0,0,0,0,0,0,0,0,0,0,0,0,0,0,0,0,0,0,0,0,0,0,0]
["в том числе:"]
["на осуществление полномочий по обеспечению жильем отдельных категорий граждан, установленных Федеральным законом от 12 января 1995 г. № 5-ФЗ «О ветеранах», в соответствии с Указом Президента Российской Федерации от 7 мая 2008 г. № 714 «Об обеспечении жильем ветеранов Великой Отечественной войны 1941 - 1945 годов»","1715",{"$nulls":29},"00/00","00",0,0,0,0,0,0,0,0,0,0,0,0,0,0,0,0,0,0,0,0,0,0,0,0,0,0,0,0,0,0,0,0,0,0]
["на осуществление полномочий по обеспечению жильем отдельных категорий граждан, установленных федеральными законами от 12 января 1995 г. № 5-ФЗ «О ветеранах» и от 24 ноября 1995 г. № 181-ФЗ «О социальной защите инвалидов в Российской Федерации»","1716",{"$nulls":29},"00/00","00",0,0,0,0,0,0,0,0,0,0,0,0,0,0,0,0,0,0,0,0,0,0,0,0,0,0,0,0,0,0,0,0,0,0]
["за счет субвенций, предоставленных из бюджета субъекта Российской Федерации, всего","1800","X","X","X","X","X","X","X","X","X","X","X","X","X","X","X","X","X","X","X","X","X","X","X","X","X","X","X","X","X","X","X",{"$f":"AH77+AH78+AH79+AH80+AH81+AH82+AH83+AH84+AH85+AH86+AH87+AH88+AH89","v":52350.7},{"$f":"AI77+AI78+AI79+AI80+AI81+AI82+AI83+AI84+AI85+AI86+AI87+AI88+AI89","v":51380.8},{"$f":"AJ77+AJ78+AJ79+AJ80+AJ81+AJ82+AJ83+AJ84+AJ85+AJ86+AJ87+AJ88+AJ89","v":0},{"$f":"AK77+AK78+AK79+AK80+AK81+AK82+AK83+AK84+AK85+AK86+AK87+AK88+AK89","v":0},{"$f":"AL77+AL78+AL79+AL80+AL81+AL82+AL83+AL84+AL85+AL86+AL87+AL88+AL89","v":0},{"$f":"AM77+AM78+AM79+AM80+AM81+AM82+AM83+AM84+AM85+AM86+AM87+AM88+AM89","v":0},{"$f":"AN77+AN78+AN79+AN80+AN81+AN82+AN83+AN84+AN85+AN86+AN87+AN88+AN89","v":0},{"$f":"AO77+AO78+AO79+AO80+AO81+AO82+AO83+AO84+AO85+AO86+AO87+AO88+AO89","v":0},{"$f":"AP77+AP78+AP79+AP80+AP81+AP82+AP83+AP84+AP85+AP86+AP87+AP88+AP89","v":0},{"$f":"AQ77+AQ78+AQ79+AQ80+AQ81+AQ82+AQ83+AQ84+AQ85+AQ86+AQ87+AQ88+AQ89","v":0},{"$f":"AR77+AR78+AR79+AR80+AR81+AR82+AR83+AR84+AR85+AR86+AR87+AR88+AR89","v":65375},0,0,0,0,56736.3,0,0,0,0,57008.1,0,0,0,0,56492.2,0,0,0,0,0,0,0,0]
["в том числе:"]
["на материально-техническое и финансовое обеспечение деятельности органов местного самоуправления без учета вопросов оплаты труда работников органов местного самоуправления","1801","Федеральный Закон от 06.10.2003 №131-ФЗ \"Об общих принципах организации местного самоуправления в Российской Федерации\"","в целом","06.10.2003 - не установлена",{"$nulls":17},"1) Закон Нижегородской области от 11.11.2005 №176-З \"О наделении органов местного самоуправления Нижегородской области отдельными государственными полномочиями по поддержке сельскохозяйственного производства\"\n2) Закон Нижегородской области от 21.10.2005 №140-З \"О наделении органов местного самоуправления отдельными государственными полномочиями в области образования\"","1) в целом\n2) в целом","1) 01.01.2006 - не установлена\n2) 01.01.2006 - не установлена",{"$nulls":6},"04/05    07/09","00",2363.9,2328.9,0,0,0,0,0,0,0,0,721,0,0,0,0,650.5,0,0,0,0,650.5,0,0,0,0,650.5,0,0,0,0,0,0,0,0]
["на материально-техническое и финансовое обеспечение деятельности органов местного самоуправления в части вопросов оплаты труда работников органов местного самоуправления","1802","Федеральный Закон от 06.10.2003 №131-ФЗ \"Об общих принципах организации местного самоуправления в Российской Федерации\"","в целом","06.10.2003 - не установлена",{"$nulls":17},"1) Закон Нижегородской области от 11.11.2005 №176-З \"О наделении органов местного самоуправления Нижегородской области отдельными государственными полномочиями по поддержке сельскохозяйственного производства\"\n2) Закон Нижегородской области от 21.10.2005 №140-З \"О наделении органов местного самоуправления отдельными государственными полномочиями в области образования\"","1) в целом\n2) в целом","1) 01.01.2006 - не установлена\n2) 01.01.2006 - не установлена",{"$nulls":6},"04/05       07/09","00",3178.2,3175.7,0,0,0,0,0,0,0,0,4283.3,0,0,0,0,4413.4,0,0,0,0,4413.4,0,0,0,0,4413.4,0,0,0,0,0,0,0,0]
["на поддержку сельскохозяйственного производства (за исключением мероприятий, предусмотренных федеральными целевыми программами), разработку и реализацию государственных программ (подпрограмм) субъекта Российской Федерации, содержащих мероприятия, направленные на развитие малого и среднего предпринимательства, и проектов в области развития субъектов малого и среднего предпринимательства (в части поддержки сельскохозяйственного производства в сфере животноводства без учета рыбоводства и рыболовства)","1805",{"$nulls":20},"Закон Нижегородской области от 11.11.2005 №176-З \"О наделении органов местного самоуправления Нижегородской области отдельными государственными полномочиями по поддержке сельскохозяйственного производства\"","в целом","01.01.2006 - не установлена",{"$nulls":6},"04/05","00",11092.9,11092.9,0,0,0,0,0,0,0,0,18078.2,0,0,0,0,13400.5,0,0,0,0,13648.2,0,0,0,0,13632.4,0,0,0,0,0,0,0,0]
["на поддержку сельскохозяйственного производства (за исключением мероприятий, предусмотренных федеральными целевыми программами), разработку и реализацию государственных программ (подпрограмм) субъекта Российской Федерации, содержащих мероприятия, направленные на развитие малого и среднего предпринимательства, и проектов в области развития субъектов малого и среднего предпринимательства (в части поддержки сельскохозяйственного производства в сфере растениеводства)","1806",{"$nulls":20},"Закон Нижегородской области от 11.11.2005 №176-З \"О наделении органов местного самоуправления Нижегородской области отдельными государственными полномочиями по поддержке сельскохозяйственного производства\"","в целом","01.01.2006 - не установлена",{"$nulls":6},"04/05","00",23016.8,23016.8,0,0,0,0,0,0,0,0,34256.4,0,0,0,0,18089.6,0,0,0,0,18089.6,0,0,0,0,18240.5,0,0,0,0,0,0,0,0]
["на поддержку сельскохозяйственного производства (за исключением мероприятий, предусмотренных федеральными целевыми программами), разработку и реализацию государственных программ (подпрограмм) субъекта Российской Федерации, содержащих мероприятия, направленные на развитие малого и среднего предпринимательства, и проектов в области развития субъектов малого и среднего предпринимательства (в части поддержки разработки и реализации государственных программ (подпрограмм) субъекта Российской Федерации, содержащих мероприятия, направленные на развитие малого и среднего предпринимательства, и проектов в области развития субъектов малого и среднего предпринимательства)","1807",{"$nulls":20},"Закон Нижегородской области от 11.11.2005 №176-З \"О наделении органов местного самоуправления Нижегородской области отдельными государственными полномочиями по поддержке сельскохозяйственного производства\"","в целом","01.01.2006 - не установлена",{"$nulls":6},"04/05","00",29.3,29.3,0,0,0,0,0,0,0,0,0.9,0,0,0,0,0,0,0,0,0,0,0,0,0,0,0,0,0,0,0,0,0,0,0]
["на финансовое обеспечение получения дошкольного образования в частных дошкольных образовательных организациях, дошкольного, начального общего, основного общего, среднего общего образования в частных общеобразовательных организациях, осуществляющих образовательную деятельность по имеющим государственную аккредитацию основным общеобразовательным программам, посредством предоставления указанным образовательным организациям субсидий на возмещение затрат, включая расходы на оплату труда, приобретение учебников и учебных пособий, средств обучения, игр, игрушек (за исключением расходов на содержание зданий и оплату коммунальных услуг), в соответствии с нормативами, указанными в подпункте 13 пункта 2 статьи 26.3 Федерального закона от 6 октября 1999 г. № 184-ФЗ «Об общих принципах организации законодательных (представительных) и исполнительных органов государственной власти субъектов Российской Федерации» (в части начального общего, основного общего, общего образования в частных общеобразовательных организациях в сельской местности)","1823",{"$nulls":29},"00/00","00",0,0,0,0,0,0,0,0,0,0,0,0,0,0,0,0,0,0,0,0,0,0,0,0,0,0,0,0,0,0,0,0,0,0]
["на обеспечение детей-сирот и детей, оставшихся без попечения родителей, лиц из числа детей-сирот и детей, оставшихся без попечения родителей, жилыми помещениями; осуществление контроля за использованием и сохранностью жилых помещений, нанимателями или членами семей нанимателей по договорам социального найма либо собственниками которых являются дети-сироты и дети, оставшиеся без попечения родителей, за обеспечением надлежащего санитарного и технического состояния жилых помещений, а также осуществления контроля за распоряжением ими","1828",{"$nulls":23},"Постановление Правительства Нижегородской области от 28.05.2010 №315 \"Об обеспечением жилыми помещениями детей-сирот и детей, оставшихся без попечения родителей, а также лиц из числа детей-сирот и детей, оставшихся без попечения родителей\"","в целом","14.06.2010 - 01.01.3000",null,null,null,"10/04","00",5402.1,5402.1,0,0,0,0,0,0,0,0,4403.5,0,0,0,0,5398.2,0,0,0,0,5398.2,0,0,0,0,5398.2,0,0,0,0,0,0,0,0]
["на определение перечня должностных лиц, уполномоченных составлять протоколы об административных правонарушениях, предусмотренных законами субъектов Российской Федерации, создание комиссий по делам несовершеннолетних и защите их прав и организации деятельности этих комиссий, создание административных комиссий, иных коллегиальных органов в целях привлечения к административной ответственности, предусмотренной законами субъектов Российской Федерации","1839","Федеральный Закон от 06.10.2003 №131-ФЗ \"Об общих принципах организации местного самоуправления в Российской Федерации\"","в целом","06.10.2003 - не установлена",{"$nulls":26},"01/04         05/05","00",476.1,476.1,0,0,0,0,0,0,0,0,2.3,0,0,0,0,521.3,0,0,0,0,521.3,0,0,0,0,521.3,0,0,0,0,0,0,0,0]
["на организацию и осуществление деятельности по опеке и попечительству","1840","1) Федеральный Закон от 06.10.1999 №184-ФЗ \"Об общих принципах организации законодательных (представительных) и исполнительных органов государственной власти субъектов Российской Федерации\"\n2) Федеральный Закон от 24.04.2008 №48-ФЗ \"Об опеке и попечительстве\"","1) в целом\n2) в целом","1) 18.10.1999 - не установлена\n2) 01.09.2008 - 01.01.3000",{"$nulls":26},"01/04          07/09","00",866.6,702.8,0,0,0,0,0,0,0,0,465.4,0,0,0,0,949.8,0,0,0,0,949.8,0,0,0,0,949.8,0,0,0,0,0,0,0,0]
["на организацию проведения на территории субъекта Российской Федерации мероприятий по предупреждению и ликвидации болезней животных, их лечению, отлову и содержанию безнадзорных животных, защите населения от болезней, общих для человека и животных, за исключением вопросов, решение которых отнесено к ведению Российской Федерации, на изъятие животных и (или) продуктов животноводства при ликвидации очагов особо опасных болезней животных на территории субъекта Российской Федерации с возмещением стоимости изъятых животных и (или) продуктов животноводства, на осуществление регионального государственного ветеринарного надзора, осуществление полномочий в области обращения с животными, предусмотренных законодательством в области обращения с животными, в том числе организации мероприятий при осуществлении деятельности по обращению с животными без владельцев","1854",{"$nulls":29},"04/05","00",83.3,79.8,0,0,0,0,0,0,0,0,88,0,0,0,0,162.6,0,0,0,0,162.6,0,0,0,0,162.6,0,0,0,0,0,0,0,0]
["на осуществление полномочий в сфере социальной защиты инвалидов – статья 15 Федерального закона от 24 ноября 1995 г. № 181-ФЗ «О социальной защите инвалидов в Российской Федерации», в сфере социальной защиты и социальной поддержки ветеранов – статья 10 Федерального закона от 12 января 1995 г. № 5-ФЗ «О ветеранах», в сфере социальной поддержки реабилитированным лицам и лицам, признанным пострадавшими от политических репрессий – статья 16 Закона Российской Федерации от 18 октября 1991 г. № 1761-1 «О реабилитации жертв политических репрессий»","1891",{"$nulls":20},"Закон Нижегородской области от 16.11.2005 №181-З \"О порядке признания граждан малоимущими в целях принятия на учет в качестве нуждающихся в жилых помещениях муниципального жилищного фонда, предоставляемых по договорам социального найма\"","в целом","16.11.2005 - 01.01.3000",{"$nulls":6},"00/00","00",0,0,0,0,0,0,0,0,0,0,0,0,0,0,0,2079.7,0,0,0,0,2171.3,0,0,0,0,1134.4,0,0,0,0,0,0,0,0]
["на установление дополнительных мер социальной поддержки и социальной помощи для отдельных категорий граждан, не предусмотренных подпунктом 24 пункта 2 статьи 26.3 Федерального закона от 6 октября 1999 г. № 184-ФЗ «Об общих принципах организации законодательных (представительных) и исполнительных органов государственной власти субъектов Российской Федерации»","1896","1) Федеральный Закон от 29.12.2012 №273-ФЗ \"Об образовании в Российской Федерации\"\n2) Федеральный Закон от 06.10.1999 №184-ФЗ \"Об общих принципах организации законодательных (представительных) и исполнительных органов государственной власти субъектов Российской Федерации\"","1) в целом\n2) в целом","1) 01.09.2013 - не установлена\n2) 18.10.1999 - не установлена",{"$nulls":17},"1) Закон Нижегородской области от 30.09.2008 №116-З \"\"О наделении органов местного самоуправления муниципальных районов и городских округов Нижегородской области отдельными государственными полномочиями в области жилищных отношений\"\"\n2) Закон Нижегородской области от 21.10.2005 №140-З \"О наделении органов местного самоуправления отдельными государственными полномочиями в области образования\"","1) в целом\n2) в целом","1) 27.10.2008 - не установлена\n2) 01.01.2006 - не установлена",{"$nulls":6},"07/02          07/07      10/04","00",2732.5,2206.9,0,0,0,0,0,0,0,0,3063.4,0,0,0,0,2893.4,0,0,0,0,2893.4,0,0,0,0,2893.4,0,0,0,0,0,0,0,0]
["на осуществление полномочий по предметам ведения Российской Федерации, а также совместного ведения по решению вопросов, не указанных в пункте 2 статьи 26.3 Федерального закона от 6 октября 1999 г. № 184-ФЗ «Об общих принципах организации законодательных (представительных) и исполнительных органов государственной власти субъектов Российской Федерации», если возможность осуществления расходов субъекта Российской Федерации на реализацию этих полномочий предусмотрена федеральными законами","1897","Федеральный Закон от 06.10.1999 №184-ФЗ \"Об общих принципах организации законодательных (представительных) и исполнительных органов государственной власти субъектов Российской Федерации\"","в целом","18.10.1999 - не установлена",{"$nulls":17},"1) Закон Нижегородской области от 21.10.2005 №140-З \"О наделении органов местного самоуправления отдельными государственными полномочиями в области образования\"\n2) Закон Нижегородской области от 18.12.2014 №184-З \"Об областном бюджете на 2015 год и на плановый период 2016 и 2017 годов\"","1) в целом\n2) в целом","1) 01.01.2006 - не установлена\n2) 01.01.2015 - 31.12.2015",{"$nulls":6},"01/05       07/01       07/02","00",3109,2869.5,0,0,0,0,0,0,0,0,12.6,0,0,0,0,8177.3,0,0,0,0,8109.8,0,0,0,0,8495.7,0,0,0,0,0,0,0,0]
["отдельные государственные полномочия, не переданные, но осуществляемые органами местного самоуправления муниципального района за счет субвенций из бюджета субъекта Российской Федерации","2000","X","X","X","X","X","X","X","X","X","X","X","X","X","X","X","X","X","X","X","X","X","X","X","X","X","X","X","X","X","X","X",{"$f":"AH92+AH93+AH94","v":149816.6},{"$f":"AI92+AI93+AI94","v":149816.6},{"$f":"AJ92+AJ93+AJ94","v":0},{"$f":"AK92+AK93+AK94","v":0},{"$f":"AL92+AL93+AL94","v":0},{"$f":"AM92+AM93+AM94","v":0},{"$f":"AN92+AN93+AN94","v":0},{"$f":"AO92+AO93+AO94","v":0},{"$f":"AP92+AP93+AP94","v":0},{"$f":"AQ92+AQ93+AQ94","v":0},{"$f":"AR92+AR93+AR94","v":149144.2},0,0,0,0,164168,0,0,0,0,164168,0,0,0,0,164168,0,0,0,0,0,0,0,0]
["в том числе:"]
["обеспечение государственных гарантий реализации прав на получение общедоступного и бесплатного дошкольного образования в муниципальных дошкольных образовательных организациях, общедоступного и бесплатного дошкольного, начального общего, основного общего, среднего общего образования в муниципальных общеобразовательных организациях, обеспечение дополнительного образования детей в муниципальных общеобразовательных организациях, включая расходы на оплату труда, приобретение учебников и учебных пособий, средств обучения, игр, игрушек (за исключением расходов на содержание зданий и оплату коммунальных услуг), в соответствии с нормативами, определяемыми органами государственной власти субъектов Российской Федерации (в части начального общего, основного общего, среднего общего образования в муниципальных общеобразовательных организациях в городской местности)","2001",{"$nulls":29},"07/02","00",40496.1,40496.1,0,0,0,0,0,0,0,0,42399.4,0,0,0,0,87977.3,0,0,0,0,87977.3,0,0,0,0,87977.3,0,0,0,0,0,0,0,0]
["обеспечение государственных гарантий реализации прав на получение общедоступного и бесплатного дошкольного образования в муниципальных дошкольных образовательных организациях, общедоступного и бесплатного дошкольного, начального общего, основного общего, среднего общего образования в муниципальных общеобразовательных организациях, обеспечение дополнительного образования детей в муниципальных общеобразовательных организациях, включая расходы на оплату труда, приобретение учебников и учебных пособий, средств обучения, игр, игрушек (за исключением расходов на содержание зданий и оплату коммунальных услуг), в соответствии с нормативами, определяемыми органами государственной власти субъектов Российской Федерации (в части начального общего, основного общего, среднего общего образования в муниципальных общеобразовательных организациях в сельской местности)","2002","Федеральный Закон от 29.12.2012 №273-ФЗ \"Об образовании в Российской Федерации\"","в целом","01.09.2013 - не установлена",{"$nulls":26},"07/02","00",54904.1,54904.1,0,0,0,0,0,0,0,0,54973.2,0,0,0,0,76190.7,0,0,0,0,76190.7,0,0,0,0,76190.7,0,0,0,0,0,0,0,0]
["обеспечение государственных гарантий реализации прав на получение общедоступного и бесплатного дошкольного образования в муниципальных дошкольных образовательных организациях, общедоступного и бесплатного дошкольного, начального общего, основного общего, среднего общего образования в муниципальных общеобразовательных организациях, обеспечение дополнительного образования детей в муниципальных общеобразовательных организациях, включая расходы на оплату труда, приобретение учебников и учебных пособий, средств обучения, игр, игрушек (за исключением расходов на содержание зданий и оплату коммунальных услуг), в соответствии с нормативами, определяемыми органами государственной власти субъектов Российской Федерации (в части дошкольного образования в муниципальных дошкольных образовательных организациях и муниципальных общеобразовательных организациях)","2003","Федеральный Закон от 29.12.2012 №273-ФЗ \"Об образовании в Российской Федерации\"","в целом","01.09.2013 - не установлена",{"$nulls":26},"07/01","00",54416.4,54416.4,0,0,0,0,0,0,0,0,51771.6,0,0,0,0,0,0,0,0,0,0,0,0,0,0,0,0,0,0,0,0,0,0,0]
["Расходные обязательства, возникшие в результате принятия нормативных правовых актов муниципального района, заключения соглашений, предусматривающих предоставление межбюджетных трансфертов из бюджета муниципального района другим бюджетам бюджетной системы Российской Федерации, всего","2100","X","X","X","X","X","X","X","X","X","X","X","X","X","X","X","X","X","X","X","X","X","X","X","X","X","X","X","X","X","X","X",{"$f":"AH97+AH98+AH101","v":102146},{"$f":"AI97+AI98+AI101","v":101772.7},{"$f":"AJ97+AJ98+AJ101","v":0},{"$f":"AK97+AK98+AK101","v":0},{"$f":"AL97+AL98+AL101","v":0},{"$f":"AM97+AM98+AM101","v":0},{"$f":"AN97+AN98+AN101","v":0},{"$f":"AO97+AO98+AO101","v":0},{"$f":"AP97+AP98+AP101","v":0},{"$f":"AQ97+AQ98+AQ101","v":0},{"$f":"AR97+AR98+AR101","v":78747.5},0,0,0,0,92126,0,0,0,0,83001.2,0,0,0,0,82265.3,0,0,0,0,0,0,0,0]
["в том числе:"]
["по предоставлению дотаций на выравнивание бюджетной обеспеченности городских, сельских поселений, всего","2101","Федеральный Закон от 06.10.2003 №131-ФЗ \"Об общих принципах организации местного самоуправления в Российской Федерации\"","в целом","06.10.2003 - не установлена",{"$nulls":17},"Закон Нижегородской области от 06.12.2011 №177-З \"О межбюджетных отношениях в Нижегородской области\"","в целом","09.12.2011 - не установлена",{"$nulls":6},"14/01","00",33739.2,33739.2,0,0,0,0,0,0,0,0,33501.9,0,0,0,0,38835,0,0,0,0,32714.5,0,0,0,0,32561.8,0,0,0,0,0,0,0,0]
["по предоставлению субвенций бюджетам городских, сельских поселений, предоставленных из федерального бюджета и (или) бюджета субъекта Российской Федерации, в случае наделения федеральным законом и (или) законом субъекта Российской Федерации органов местного самоуправления муниципального района полномочиями органов государственной власти по расчету и предоставлению субвенций бюджетам городских, сельских поселений, всего","2105","X","X","X","X","X","X","X","X","X","X","X","X","X","X","X","X","X","X","X","X","X","X","X","X","X","X","X","X","X","X","X",{"$f":"AH100","v":857.6},{"$f":"AI100","v":857.6},{"$f":"AJ100","v":0},{"$f":"AK100","v":0},{"$f":"AL100","v":0},{"$f":"AM100","v":0},{"$f":"AN100","v":0},{"$f":"AO100","v":0},{"$f":"AP100","v":0},{"$f":"AQ100","v":0},{"$f":"AR100","v":891.8},0,0,0,0,913.9,0,0,0,0,943.1,0,0,0,0,974.8,0,0,0,0,0,0,0,0]
["в том числе:"]
["Субвенции на осуществление государственных полномочий Российской Федерации по первичному воинскому учету на территориях, где отсутствуют военные комиссариаты","2106",{"$nulls":20},"Закон Нижегородской области от 06.12.2011 №177-З \"О межбюджетных отношениях в Нижегородской области\"","в целом","09.12.2011 - не установлена",{"$nulls":6},"02/03","00",857.6,857.6,0,0,0,0,0,0,0,0,891.8,0,0,0,0,913.9,0,0,0,0,943.1,0,0,0,0,974.8,0,0,0,0,0,0,0,0]
["по предоставлению иных межбюджетных трансфертов, всего","2200","X","X","X","X","X","X","X","X","X","X","X","X","X","X","X","X","X","X","X","X","X","X","X","X","X","X","X","X","X","X","X",{"$f":"AH103","v":67549.2},{"$f":"AI103","v":67175.9},{"$f":"AJ103","v":0},{"$f":"AK103","v":0},{"$f":"AL103","v":0},{"$f":"AM103","v":0},{"$f":"AN103","v":0},{"$f":"AO103","v":0},{"$f":"AP103","v":0},{"$f":"AQ103","v":0},{"$f":"AR103","v":44353.8},0,0,0,0,52377.1,0,0,0,0,49343.6,0,0,0,0,48728.7,0,0,0,0,0,0,0,0]
["в том числе:"]
["в иных случаях, не связанных с заключением соглашений, предусмотренных в подпункте 1.6.4.1, всего","2300","X","X","X","X","X","X","X","X","X","X","X","X","X","X","X","X","X","X","X","X","X","X","X","X","X","X","X","X","X","X","X",{"$f":"AH105+AH106+AH107+AH108+AH109+AH110","v":67549.2},{"$f":"AI105+AI106+AI107+AI108+AI109+AI110","v":67175.9},{"$f":"AJ105+AJ106+AJ107+AJ108+AJ109+AJ110","v":0},{"$f":"AK105+AK106+AK107+AK108+AK109+AK110","v":0},{"$f":"AL105+AL106+AL107+AL108+AL109+AL110","v":0},{"$f":"AM105+AM106+AM107+AM108+AM109+AM110","v":0},{"$f":"AN105+AN106+AN107+AN108+AN109+AN110","v":0},{"$f":"AO105+AO106+AO107+AO108+AO109+AO110","v":0},{"$f":"AP105+AP106+AP107+AP108+AP109+AP110","v":0},{"$f":"AQ105+AQ106+AQ107+AQ108+AQ109+AQ110","v":0},{"$f":"AR105+AR106+AR107+AR108+AR109+AR110","v":44353.8},{"$f":"AS105+AS106+AS107+AS108+AS109+AS110","v":0},{"$f":"AT105+AT106+AT107+AT108+AT109+AT110","v":0},{"$f":"AU105+AU106+AU107+AU108+AU109+AU110","v":0},{"$f":"AV105+AV106+AV107+AV108+AV109+AV110","v":0},52377.1,0,0,0,0,49343.6,0,0,0,0,48728.7,0,0,0,0,0,0,0,0]
["в том числе:"]
["иные межбюджетные трансферы на поддержку мер по обеспечению сбалансированности бюджетов поселений","2301","Федеральный Закон от 06.10.2003 №131-ФЗ \"Об общих принципах организации местного самоуправления в Российской Федерации\"","в целом","06.10.2003 - не установлена",{"$nulls":17},"Закон Нижегородской области от 06.12.2011 №177-З \"О межбюджетных отношениях в Нижегородской области\"","в целом","09.12.2011 - не установлена",{"$nulls":6},"03/10            05/01             05/03              10/03            14/03","00",18520.3,18520.3,0,0,0,0,0,0,0,0,16731.9,0,0,0,0,43397.8,0,0,0,0,47914.3,0,0,0,0,47299.4,0,0,0,0,0,0,0,0]
["иные межбюджетные трансферы в рамках муниципальных программ (например, поддержка местных инициатив)","2302","Федеральный Закон от 06.10.2003 №131-ФЗ \"Об общих принципах организации местного самоуправления в Российской Федерации\"","в целом","06.10.2003 - не установлена",{"$nulls":17},"Закон Нижегородской области от 06.12.2011 №177-З \"О межбюджетных отношениях в Нижегородской области\"","в целом","09.12.2011 - не установлена",{"$nulls":6},"04/09             05/03               11/02","00",4253.7,4253.7,0,0,0,0,0,0,0,0,9712.6,0,0,0,0,1429.3,0,0,0,0,1429.3,0,0,0,0,1429.3,0,0,0,0,0,0,0,0]
[" иные межбюджетные трансферы за счет Резервного фонда муниципального образования","2304",{"$nulls":29},"10/03",null,9,9,{"$nulls":8},0]
["иные межбюджетные трансферы за счет Фонда на поддержку территорий","2305",{"$nulls":29},"00/00","00",0,0,0,0,0,0,0,0,0,0,97.6,0,0,0,0,0,0,0,0,0,0,0,0,0,0,0,0,0,0,0,0,0,0,0]
["иные межбюджетные трансферты на капитальный ремонт и ремонт автомобильных дорог общего пользования","2307","Федеральный Закон от 10.12.1995 №196-ФЗ \"О безопасности дорожного движения\"","в целом","26.12.1995 - не установлена",{"$nulls":17},"Закон Нижегородской области от 05.08.2014 №96-З \"О дорожном фонде Нижегородской области\"","в целом","05.08.2014 - не установлена",{"$nulls":6},"04/09","00",25941.9,25568.6,0,0,0,0,0,0,0,0,12429.9,0,0,0,0,7550,0,0,0,0,0,0,0,0,0,0,0,0,0,0,0,0,0,0]
["прочие иные МБТ","2308",{"$nulls":29},"03/10             05/01           05/03            10/03","00",18824.3,18824.3,0,0,0,0,0,0,0,0,5381.8,0,0,0,0,0,0,0,0,0,0,0,0,0,0,0,0,0,0,0,0,0,0,0]
["Итого расходных обязательств муниципальных образований, без учета внутренних оборотов","11800","X","X","X","X","X","X","X","X","X","X","X","X","X","X","X","X","X","X","X","X","X","X","X","X","X","X","X","X","X","X","X",{"$f":"AH19+AH48+AH61+AH69+AH90","v":796010},{"$f":"AI19+AI48+AI61+AI69+AI90","v":784690.1},{"$f":"AJ19+AJ48+AJ61+AJ69+AJ90","v":0},{"$f":"AK19+AK48+AK61+AK69+AK90","v":0},{"$f":"AL19+AL48+AL61+AL69+AL90","v":0},{"$f":"AM19+AM48+AM61+AM69+AM90","v":0},{"$f":"AN19+AN48+AN61+AN69+AN90","v":0},{"$f":"AO19+AO48+AO61+AO69+AO90","v":0},{"$f":"AP19+AP48+AP61+AP69+AP90","v":0},{"$f":"AQ19+AQ48+AQ61+AQ69+AQ90","v":0},{"$f":"AR19+AR48+AR61+AR69+AR90","v":634253.7},0,0,0,0,588678.4,0,0,0,0,574676.9,0,0,0,0,571558.7,0,0,0,0,0,0,0,0]
["Итого расходных обязательств муниципальных образований","11900","X","X","X","X","X","X","X","X","X","X","X","X","X","X","X","X","X","X","X","X","X","X","X","X","X","X","X","X","X","X","X",{"$f":"AH111+AH95","v":898156},{"$f":"AI111+AI95","v":886462.8},{"$f":"AJ111+AJ95","v":0},{"$f":"AK111+AK95","v":0},{"$f":"AL111+AL95","v":0},{"$f":"AM111+AM95","v":0},{"$f":"AN111+AN95","v":0},{"$f":"AO111+AO95","v":0},{"$f":"AP111+AP95","v":0},{"$f":"AQ111+AQ95","v":0},{"$f":"AR111+AR95","v":713001.2},0,0,0,0,680804.4,0,0,0,0,657678.1,0,0,0,0,653824,0,0,0,0,0,0,0,0]
["\" 1\" ОКТЯБРЯ 2021"]